bitfinex/quotes_BTCUSD_20220304
["timestamp","ask_amount","ask_price","bid_price","bid_amount"]
[1646356166169,0.17438892,41313.0,41312.0,42.95230052]
[1646356166170,0.17819449,41313.0,41312.0,42.95230052]
[1646356166369,0.17819449,41313.0,41312.0,37.93005991]
[1646356166569,2.04422345,41313.0,41312.0,35.97011891]
[1646356166773,2.04422345,41313.0,41312.0,35.72896128]
[1646356166969,0.01175358,41314.0,41313.0,1.35]
[1646356167170,0.51175358,41314.0,41312.0,35.72896128]
[1646356167371,0.05865391,41313.0,41312.0,35.72896128]
[1646356167569,0.05865391,41313.0,41312.0,35.65895625]
[1646356167972,0.267195,41313.0,41312.0,35.53668127]
[1646356168169,0.05865391,41313.0,41312.0,33.32921724]
[1646356168433,0.06247199,41313.0,41312.0,33.28883524]
[1646356168631,0.06247199,41313.0,41312.0,32.56108124]
[1646356168833,0.06247199,41313.0,41312.0,32.49521421]
[1646356169032,0.06247199,41313.0,41312.0,32.13140721]
[1646356169233,0.06247199,41313.0,41312.0,32.26905033]
[1646356169438,0.38375996,41313.0,41312.0,32.08300721]
[1646356169635,0.38375996,41313.0,41312.0,32.28300721]
[1646356169834,0.08375996,41313.0,41312.0,31.55531321]
[1646356170234,0.38375996,41313.0,41312.0,31.19149821]
[1646356170433,0.38375996,41313.0,41312.0,30.27117128]
[1646356170434,0.08375996,41313.0,41312.0,30.27117128]
[1646356170739,0.83806455,41313.0,41312.0,20.4080014]
[1646356170933,0.86648751,41313.0,41312.0,17.58886778]
[1646356171135,2.08978751,41313.0,41312.0,17.06328277]
[1646356171336,2.08978751,41313.0,41312.0,4.9650381]
[1646356171535,2.11137688,41313.0,41312.0,4.05821139]
[1646356171735,2.25307688,41313.0,41312.0,3.81691819]
[1646356171938,2.52437327,41313.0,41312.0,3.05385999]
[1646356172173,2.85741707,41313.0,41312.0,0.33265057]
[1646356172374,2.85741707,41313.0,41297.0,0.7627889]
[1646356172375,3.22371446,41313.0,41297.0,0.7627889]
[1646356172574,1.0233,41312.0,41297.0,0.7557889]
[1646356172778,1.0233,41312.0,41281.0,0.04131852]
[1646356172779,1.0233,41312.0,41290.0,4.999]
[1646356172780,0.0083,41299.0,41290.0,4.999]
[1646356172983,0.00796914,41299.0,41290.0,4.08532022]
[1646356173274,0.69055415,41299.0,41290.0,3.80344789]
[1646356173477,0.00381757,41298.0,41290.0,2.92459846]
[1646356173677,0.1417,41298.0,41290.0,2.77139404]
[1646356173879,0.68728876,41299.0,41290.0,0.01710782]
[1646356173880,3.27935268,41297.0,41290.0,0.01710782]
[1646356174080,0.00381757,41290.0,41277.0,0.83454041]
[1646356174279,0.5,41294.0,41277.0,0.62017891]
[1646356174280,0.27831803,41293.0,41277.0,0.62017891]
[1646356174482,0.02158937,41292.0,41274.0,0.00156818]
[1646356174679,0.02158937,41292.0,41265.0,0.26185804]
[1646356174680,0.41662937,41292.0,41265.0,0.26185804]
[1646356174880,0.41662937,41292.0,41261.0,0.29852048]
[1646356174881,0.004,41277.0,41261.0,0.29852048]
[1646356175076,0.01276047,41278.0,41261.0,0.26155675]
[1646356175077,0.00910047,41278.0,41261.0,0.26155675]
[1646356175281,0.00910047,41278.0,41253.0,0.101]
[1646356175282,0.00144047,41278.0,41253.0,0.101]
[1646356175479,0.5,41277.0,41259.0,0.12739344]
[1646356175680,0.0585,41272.0,41264.0,0.19557462]
[1646356175925,0.66759655,41270.0,41251.0,2.2795483]
[1646356176127,0.66759655,41270.0,41251.0,1.52543463]
[1646356176128,0.0585,41268.0,41251.0,1.52543463]
[1646356176323,0.0585,41268.0,41250.0,4.97230456]
[1646356176324,0.0575,41268.0,41250.0,4.97230456]
[1646356176629,0.5,41266.0,41250.0,4.57980978]
[1646356176824,0.51167411,41266.0,41248.0,0.36577273]
[1646356177027,0.01382081,41265.0,41248.0,0.16204569]
[1646356177225,0.5,41266.0,41239.0,0.26521558]
[1646356177226,0.01491413,41264.0,41239.0,0.26521558]
[1646356177426,0.55296589,41266.0,41229.0,0.35]
[1646356177427,0.25478442,41234.0,41231.0,0.17020334]
[1646356177725,0.25252138,41234.0,41231.0,0.17020334]
[1646356177922,0.25252138,41234.0,41232.0,0.17764959]
[1646356177923,0.25180138,41234.0,41232.0,0.17764959]
[1646356178124,0.25180138,41234.0,41231.0,0.13382287]
[1646356178125,0.25108138,41234.0,41231.0,0.13382287]
[1646356178328,0.25108138,41234.0,41231.0,0.13389077]
[1646356178623,0.05,41246.0,41234.0,0.15388]
[1646356178823,0.7233,41245.0,41234.0,0.1539479]
[1646356179023,0.56484,41244.0,41218.0,0.04846258]
[1646356179222,0.01463838,41254.0,41253.0,0.20176287]
[1646356179422,0.01463838,41254.0,41248.0,0.18708471]
[1646356179423,0.44160958,41254.0,41239.0,0.47079493]
[1646356179690,0.04021232,41266.0,41230.0,1.74374818]
[1646356179691,0.0127122,41261.0,41258.0,0.16798468]
[1646356179883,0.04021232,41266.0,41258.0,0.16798468]
[1646356179884,0.7233,41265.0,41259.0,0.21663671]
[1646356180084,0.05520001,41271.0,41259.0,0.19123173]
[1646356180284,0.4643,41288.0,41268.0,0.37004152]
[1646356180489,0.4643,41288.0,41260.0,1.53927688]
[1646356180490,0.22088,41269.0,41260.0,1.35]
[1646356180681,0.0930297,41277.0,41260.0,1.35]
[1646356180881,0.0930297,41277.0,41263.0,0.6]
[1646356180882,0.7233,41276.0,41263.0,0.6]
[1646356181081,0.0355297,41277.0,41263.0,0.2]
[1646356181283,0.01089109,41278.0,41273.0,0.05635423]
[1646356181486,0.01256856,41277.0,41274.0,0.5]
[1646356181682,0.01256856,41277.0,41273.0,0.4]
[1646356181683,0.01396015,41276.0,41275.0,0.20517527]
[1646356181884,0.008536,41277.0,41275.0,0.20517527]
[1646356182081,0.008536,41277.0,41274.0,0.15]
[1646356182285,0.008536,41277.0,41269.0,0.35]
[1646356182483,0.32401,41288.0,41276.0,0.19800878]
[1646356182484,0.00102016,41278.0,41276.0,0.19800878]
[1646356182682,0.01548747,41288.0,41277.0,0.15]
[1646356182881,0.05,41290.0,41285.0,0.2]
[1646356183086,0.05,41290.0,41287.0,0.45608137]
[1646356183087,6e-06,41288.0,41287.0,0.45608137]
[1646356183285,0.008536,41288.0,41287.0,0.45608137]
[1646356183524,0.00377331,41299.0,41287.0,0.26753604]
[1646356183724,0.01564383,41301.0,41294.0,0.15]
[1646356183725,0.05135118,41301.0,41294.0,0.15]
[1646356183925,0.05135118,41301.0,41287.0,0.26753604]
[1646356183926,0.01435179,41300.0,41295.0,0.3]
[1646356184123,0.03570735,41301.0,41299.0,0.2]
[1646356184323,7.35e-06,41301.0,41299.0,0.45]
[1646356184934,0.025,41317.0,41309.0,0.15863672]
[1646356185126,0.15254815,41328.0,41316.0,0.15]
[1646356185127,0.01591741,41328.0,41316.0,0.15]
[1646356185326,0.01591741,41328.0,41324.0,0.25]
[1646356185327,0.3,41328.0,41324.0,0.25]
[1646356185529,0.01204149,41327.0,41309.0,0.24412572]
[1646356185727,0.01529815,41327.0,41319.0,0.45]
[1646356186127,0.00376459,41327.0,41316.0,0.7785]
[1646356186325,0.01213381,41322.0,41316.0,0.7785]
[1646356186527,0.01397958,41320.0,41298.0,0.2]
[1646356186725,0.01551621,41318.0,41303.0,0.17920527]
[1646356186926,0.01666685,41315.0,41297.0,0.5849]
[1646356187193,0.01493211,41305.0,41297.0,0.5849]
[1646356187380,0.01493211,41305.0,41297.0,0.220982]
[1646356187381,0.01483439,41303.0,41297.0,0.220982]
[1646356187583,0.01295294,41299.0,41275.0,0.17920527]
[1646356187783,0.01295294,41299.0,41264.0,0.85610527]
[1646356187784,0.01552121,41296.0,41264.0,0.85610527]
[1646356187983,0.01552121,41296.0,41264.0,0.4769]
[1646356187984,0.055,41283.0,41264.0,0.4769]
[1646356188184,0.20300339,41295.0,41252.0,0.98513352]
[1646356188185,0.0147437,41277.0,41252.0,0.98513352]
[1646356188380,0.0147437,41277.0,41257.0,0.001]
[1646356188381,0.01524149,41275.0,41257.0,0.001]
[1646356188584,0.01524149,41275.0,41251.0,3.88827802]
[1646356188585,0.055,41265.0,41251.0,3.88827802]
[1646356188882,0.01678766,41271.0,41261.0,6.946e-05]
[1646356188883,0.01435027,41262.0,41261.0,6.946e-05]
[1646356189079,0.01435027,41262.0,41237.0,0.28313352]
[1646356189378,0.01435027,41262.0,41253.0,0.20278951]
[1646356189581,0.38892119,41263.0,41261.0,0.26623352]
[1646356189582,0.00991119,41263.0,41261.0,0.26623352]
[1646356189779,0.40042173,41274.0,41261.0,0.35623352]
[1646356189980,0.03756396,41274.0,41260.0,0.29198375]
[1646356190184,0.03756396,41274.0,41271.0,0.06623352]
[1646356190380,0.30995392,41275.0,41266.0,0.27344057]
[1646356190381,0.00995392,41275.0,41266.0,0.27344057]
[1646356190582,0.00995392,41275.0,41254.0,0.096]
[1646356190583,0.03396392,41275.0,41255.0,0.001]
[1646356190784,0.01247223,41272.0,41255.0,0.001]
[1646356191027,1.0233,41274.0,41255.0,0.001]
[1646356191028,0.01526539,41268.0,41255.0,0.001]
[1646356191226,0.01489776,41261.0,41255.0,0.001]
[1646356191430,0.01266096,41259.0,41255.0,0.001]
[1646356191630,0.31047268,41261.0,41255.0,0.001]
[1646356191631,0.01207603,41258.0,41255.0,0.001]
[1646356191829,0.01331559,41257.0,41255.0,0.001]
[1646356192226,0.01331559,41257.0,41256.0,0.19366962]
[1646356192227,5.59e-06,41257.0,41256.0,0.19366962]
[1646356192426,5.59e-06,41257.0,41256.0,0.25990314]
[1646356192629,5.59e-06,41257.0,41254.0,0.001]
[1646356192831,0.01591026,41255.0,41247.0,0.7288]
[1646356193029,0.01591026,41255.0,41247.0,0.68128673]
[1646356193230,0.055,41253.0,41247.0,0.68128673]
[1646356193428,0.055,41253.0,41237.0,0.4773]
[1646356193429,0.055,41249.0,41237.0,0.4773]
[1646356193630,0.01486325,41247.0,41241.0,0.16849216]
[1646356193827,0.01486325,41247.0,41237.0,0.4773]
[1646356193828,0.06786043,41247.0,41237.0,0.001]
[1646356194029,0.02799587,41240.0,41228.0,0.25223352]
[1646356194230,0.0150075,41238.0,41224.0,0.06623352]
[1646356194430,0.00052123,41236.0,41226.0,0.26422088]
[1646356194688,0.03708935,41242.0,41235.0,0.56602697]
[1646356194884,0.05,41248.0,41245.0,0.06623352]
[1646356195083,0.01206005,41255.0,41245.0,0.06623352]
[1646356195285,0.0442,41254.0,41246.0,0.511827]
[1646356195485,0.0442,41254.0,41253.0,0.26093114]
[1646356195683,0.0442,41254.0,41253.0,0.50816466]
[1646356195884,0.05,41264.0,41253.0,0.50816466]
[1646356195885,0.065414,41264.0,41253.0,0.50816466]
[1646356196084,0.02664914,41264.0,41262.0,0.2057362]
[1646356196284,0.02799587,41267.0,41262.0,0.20343892]
[1646356196582,0.4,41271.0,41268.0,0.19778837]
[1646356196784,0.4,41271.0,41269.0,0.16391135]
[1646356196995,0.01340497,41272.0,41269.0,0.16391135]
[1646356197184,0.05,41281.0,41280.0,0.06623352]
[1646356197384,0.4,41282.0,41280.0,0.06623352]
[1646356197584,0.4,41282.0,41281.0,0.39801518]
[1646356197785,0.4,41282.0,41278.0,0.181]
[1646356197987,0.00961507,41283.0,41278.0,0.181]
[1646356198286,0.00961507,41283.0,41278.0,0.11]
[1646356198521,0.00961507,41283.0,41270.0,0.11]
[1646356198522,0.01403701,41280.0,41270.0,0.11]
[1646356198722,0.01403701,41280.0,41250.0,0.2]
[1646356198723,0.02401,41270.0,41265.0,0.11]
[1646356198922,0.02401,41270.0,41257.0,0.11]
[1646356198923,0.01330095,41264.0,41257.0,0.11]
[1646356199120,0.016862,41262.0,41254.0,0.17679884]
[1646356199321,0.016862,41262.0,41261.0,0.31026371]
[1646356199322,0.0442,41262.0,41261.0,0.31026371]
[1646356199520,0.01165279,41263.0,41261.0,0.31026371]
[1646356199728,0.01341317,41274.0,41258.0,0.07353471]
[1646356199729,0.01341317,41274.0,41268.0,0.29669896]
[1646356199923,0.01101688,41275.0,41274.0,0.11]
[1646356200126,0.01464024,41282.0,41278.0,0.18145687]
[1646356200127,0.01147811,41280.0,41278.0,0.18145687]
[1646356200324,0.06384519,41286.0,41278.0,0.46590185]
[1646356200527,0.43587106,41287.0,41285.0,0.11]
[1646356200528,0.03587106,41287.0,41285.0,0.11]
[1646356200723,0.03697091,41288.0,41287.0,0.11]
[1646356200928,0.01377003,41293.0,41287.0,0.11]
[1646356201126,0.12035104,41296.0,41292.0,0.11]
[1646356201127,0.01377921,41296.0,41292.0,0.11]
[1646356201325,0.03560202,41301.0,41295.0,0.33885403]
[1646356201632,0.02799587,41308.0,41303.0,0.11]
[1646356201827,0.01571551,41305.0,41301.0,0.11]
[1646356202025,0.00376707,41303.0,41297.0,0.11]
[1646356202299,0.01614261,41300.0,41297.0,0.11]
[1646356202496,0.01614261,41300.0,41299.0,0.11]
[1646356202697,0.01283695,41301.0,41299.0,0.11]
[1646356202896,0.01283695,41301.0,41286.0,1.35]
[1646356203104,0.01283695,41301.0,41288.0,0.11]
[1646356203105,0.0133402,41298.0,41288.0,0.11]
[1646356203298,0.0133402,41298.0,41272.0,1.36590413]
[1646356203299,0.01531034,41296.0,41287.0,0.11]
[1646356203499,0.30901247,41298.0,41274.0,0.12264348]
[1646356203500,0.04001069,41294.0,41274.0,0.12264348]
[1646356203703,0.01567314,41292.0,41274.0,0.12264348]
[1646356203899,0.01567314,41292.0,41286.0,0.19557237]
[1646356204098,1.70922559,41288.0,41286.0,0.19557237]
[1646356204300,1.70922559,41288.0,41287.0,0.11]
[1646356204501,0.01017412,41289.0,41287.0,0.11]
[1646356204705,0.01225063,41297.0,41287.0,0.11]
[1646356204898,0.00375812,41300.0,41287.0,0.11]
[1646356204899,0.01945513,41300.0,41287.0,0.11]
[1646356205099,0.03175399,41296.0,41286.0,0.19557237]
[1646356205301,0.03175399,41296.0,41294.0,0.19704463]
[1646356205302,0.01212788,41295.0,41294.0,0.19704463]
[1646356205938,0.06064265,41301.0,41294.0,0.19704463]
[1646356205939,0.07334994,41301.0,41295.0,1.35]
[1646356206138,0.07334994,41301.0,41300.0,0.11]
[1646356206139,0.07201654,41301.0,41300.0,0.11]
[1646356206338,0.07070328,41301.0,41300.0,0.11]
[1646356206540,0.06064265,41301.0,41300.0,0.11]
[1646356206741,0.06064265,41301.0,41294.0,0.19704463]
[1646356206742,0.07173197,41301.0,41294.0,0.19704463]
[1646356206940,0.07173197,41301.0,41300.0,0.11]
[1646356207140,0.4,41306.0,41301.0,0.43001976]
[1646356207341,0.1161,41306.0,41301.0,0.43001976]
[1646356207539,0.02799587,41315.0,41301.0,0.43001976]
[1646356207540,0.01167958,41315.0,41310.0,0.16813095]
[1646356207742,0.04708433,41315.0,41309.0,0.11]
[1646356207943,0.04708433,41315.0,41313.0,0.11]
[1646356208143,0.04708433,41315.0,41310.0,0.11]
[1646356208348,0.03967545,41315.0,41310.0,0.11]
[1646356208544,0.00377318,41317.0,41299.0,0.7635]
[1646356208545,0.02799587,41311.0,41299.0,0.7635]
[1646356208751,0.01566511,41309.0,41299.0,0.7635]
[1646356208944,0.01566511,41309.0,41305.0,0.21333891]
[1646356209142,0.01566511,41309.0,41300.0,0.3]
[1646356209443,0.01566511,41309.0,41301.0,0.11]
[1646356209675,0.01566511,41309.0,41302.0,0.15570287]
[1646356209873,0.04366098,41309.0,41299.0,0.7635]
[1646356210075,0.01667498,41308.0,41300.0,0.26147918]
[1646356210274,0.01667498,41308.0,41299.0,0.7607132]
[1646356210484,0.01667498,41308.0,41287.0,0.11006018]
[1646356210485,0.02799587,41300.0,41287.0,0.11006018]
[1646356210678,0.7233,41306.0,41287.0,0.11006018]
[1646356210679,0.02299587,41292.0,41287.0,0.11006018]
[1646356210884,0.01122653,41293.0,41290.0,0.16185818]
[1646356211075,0.01122653,41293.0,41287.0,0.11006018]
[1646356211275,0.01122653,41293.0,41291.0,0.25194374]
[1646356211476,0.03761756,41298.0,41291.0,0.25194374]
[1646356211477,0.03574891,41298.0,41297.0,0.42312847]
[1646356211682,0.01275304,41298.0,41297.0,0.05929147]
[1646356212077,0.06063841,41299.0,41297.0,0.24104992]
[1646356212276,0.060635,41302.0,41299.0,0.28063856]
[1646356212478,0.060635,41302.0,41299.0,0.28045312]
[1646356213282,0.01344037,41307.0,41301.0,0.11]
[1646356213544,0.3,41315.0,41310.0,0.15564155]
[1646356213545,0.00918645,41315.0,41310.0,0.15564155]
[1646356213731,0.0132619,41317.0,41310.0,0.15564155]
[1646356214035,0.20488487,41319.0,41317.0,0.2128965]
[1646356214229,0.20488487,41319.0,41317.0,0.2369065]
[1646356214431,0.20488487,41319.0,41318.0,0.28030444]
[1646356214630,0.20488487,41319.0,41318.0,0.30431444]
[1646356215230,0.060601,41324.0,41318.0,0.36449707]
[1646356215438,0.01302115,41329.0,41322.0,0.02401]
[1646356215633,0.01076822,41328.0,41321.0,0.11]
[1646356215832,0.01076822,41328.0,41326.0,0.21414047]
[1646356216035,0.01470048,41334.0,41333.0,0.18649134]
[1646356216234,0.01470048,41334.0,41330.0,0.11]
[1646356216431,0.03769635,41334.0,41323.0,0.17329569]
[1646356216631,0.03769635,41334.0,41318.0,0.30431444]
[1646356216632,0.3,41333.0,41318.0,0.30431444]
[1646356216829,0.01470048,41334.0,41326.0,0.22936931]
[1646356216830,0.02299587,41331.0,41326.0,0.22936931]
[1646356217030,0.02299587,41331.0,41321.0,0.02401]
[1646356217279,0.00377392,41332.0,41330.0,0.11]
[1646356217481,0.00377392,41332.0,41330.0,0.34149229]
[1646356217680,0.060568,41343.0,41326.0,0.19985428]
[1646356217681,0.00377392,41339.0,41331.0,1.37401]
[1646356217880,0.00377392,41339.0,41335.0,0.13401]
[1646356218081,0.06434192,41343.0,41336.0,0.18728022]
[1646356218381,0.05,41348.0,41342.0,1.3]
[1646356218583,0.00374728,41352.0,41349.0,0.16184759]
[1646356218778,0.0108001,41357.0,41349.0,0.14566284]
[1646356218979,0.05,41359.0,41350.0,0.11]
[1646356218980,0.171092,41359.0,41350.0,0.11]
[1646356219178,0.171092,41359.0,41342.0,1.32401]
[1646356219179,0.01312552,41360.0,41356.0,0.23258105]
[1646356219380,0.01573368,41366.0,41350.0,0.1]
[1646356219576,0.01573368,41366.0,41353.0,0.1]
[1646356219780,0.01573368,41366.0,41355.0,0.1]
[1646356219979,0.060532,41364.0,41356.0,0.1]
[1646356220180,0.060532,41364.0,41360.0,0.17612207]
[1646356220580,0.121067,41367.0,41363.0,0.1]
[1646356220786,0.04545455,41369.0,41360.0,0.17612207]
[1646356220787,0.04545455,41369.0,41366.0,0.1]
[1646356221044,0.04545455,41369.0,41355.0,0.25]
[1646356221045,0.16032625,41374.0,41362.0,0.1]
[1646356221256,0.16032625,41374.0,41343.0,0.02401]
[1646356221257,0.16032625,41374.0,41354.0,0.1]
[1646356221258,0.060538,41363.0,41354.0,0.1]
[1646356221446,0.02299587,41359.0,41344.0,0.1]
[1646356221645,0.02299587,41358.0,41344.0,0.1]
[1646356221847,0.31367722,41359.0,41341.0,0.1]
[1646356221848,0.02299587,41349.0,41341.0,0.1]
[1646356222046,0.02299587,41349.0,41336.0,0.2264]
[1646356222047,0.121122,41347.0,41336.0,0.2264]
[1646356222250,0.02299587,41339.0,41334.0,0.7593]
[1646356222641,0.01022057,41340.0,41334.0,0.7593]
[1646356222842,0.01799587,41336.0,41334.0,0.7593]
[1646356223042,0.01799587,41336.0,41332.0,0.37900134]
[1646356223243,0.01799587,41336.0,41333.0,0.21086031]
[1646356223442,0.02173429,41336.0,41332.0,0.37900134]
[1646356223643,0.060575,41338.0,41332.0,0.37900134]
[1646356223644,0.060575,41338.0,41334.0,0.1]
[1646356223847,0.060575,41338.0,41336.0,0.15580161]
[1646356224149,0.01432288,41353.0,41336.0,0.15580161]
[1646356224150,0.01432288,41353.0,41346.0,0.16756865]
[1646356224346,0.06055,41350.0,41346.0,0.16756865]
[1646356224546,0.01799587,41357.0,41349.0,0.1]
[1646356224785,0.181669,41359.0,41355.0,0.05252334]
[1646356224988,0.16406467,41370.0,41355.0,0.1]
[1646356225194,0.16406467,41370.0,41361.0,0.16567236]
[1646356225486,0.45,41379.0,41376.0,0.16106477]
[1646356225487,0.4,41379.0,41376.0,0.16106477]
[1646356225883,0.4,41379.0,41373.0,0.1]
[1646356226083,0.01202989,41378.0,41373.0,0.1]
[1646356226283,0.01202989,41378.0,41371.0,0.05849562]
[1646356226284,0.01202989,41378.0,41372.0,0.1]
[1646356226488,0.07850087,41381.0,41376.0,0.1]
[1646356226682,0.07850087,41381.0,41371.0,0.05849562]
[1646356226887,0.121036,41376.0,41372.0,0.17175051]
[1646356227083,0.116036,41376.0,41372.0,0.17175051]
[1646356227283,0.116036,41376.0,41368.0,0.095]
[1646356227482,0.116036,41376.0,41370.0,0.23153168]
[1646356227685,0.116036,41376.0,41367.0,0.095]
[1646356227886,0.01799587,41373.0,41366.0,0.095]
[1646356228084,0.116036,41376.0,41363.0,0.7691]
[1646356228085,0.01799587,41369.0,41363.0,0.7691]
[1646356228288,0.01242792,41375.0,41363.0,0.92550779]
[1646356228529,0.060536,41367.0,41363.0,0.92550779]
[1646356228731,0.060536,41367.0,41360.0,0.21683246]
[1646356228732,0.01531573,41374.0,41365.0,1.35]
[1646356229035,0.05,41379.0,41374.0,0.095]
[1646356229036,0.16032625,41379.0,41374.0,0.095]
[1646356229230,0.04,41384.0,41372.0,0.06390362]
[1646356229430,0.04,41384.0,41372.0,0.15890362]
[1646356229628,0.04,41384.0,41383.0,0.18853161]
[1646356229830,0.100502,41384.0,41383.0,0.18853161]
[1646356231230,2e-06,41384.0,41383.0,0.18853161]
[1646356231431,2e-06,41384.0,41376.0,0.095]
[1646356231831,2e-06,41384.0,41369.0,0.095]
[1646356231832,0.060504,41384.0,41369.0,0.095]
[1646356232032,0.060504,41384.0,41367.0,0.4503]
[1646356232270,0.0156315,41383.0,41369.0,0.095]
[1646356232469,0.0156315,41383.0,41372.0,0.2124332]
[1646356232668,0.0156315,41383.0,41372.0,0.2074332]
[1646356232868,0.0156315,41383.0,41369.0,0.095]
[1646356233170,2.37772158,41373.0,41367.0,0.4503]
[1646356233369,0.060513,41376.0,41369.0,0.21172277]
[1646356233773,0.060513,41376.0,41375.0,0.095]
[1646356233976,0.060513,41376.0,41360.0,0.7555]
[1646356233977,0.15,41376.0,41361.0,0.4624]
[1646356234178,0.15,41373.0,41361.0,0.4624]
[1646356234372,0.3,41375.0,41360.0,0.7555]
[1646356234373,0.01347569,41374.0,41360.0,0.7555]
[1646356234572,0.1,41374.0,41360.0,0.7555]
[1646356234773,0.15,41373.0,41360.0,0.7555]
[1646356234973,0.060529,41370.0,41366.0,0.19435335]
[1646356235373,0.160529,41370.0,41361.0,0.21781772]
[1646356235772,0.160529,41370.0,41361.0,0.21281772]
[1646356236027,0.460529,41370.0,41360.0,0.7555]
[1646356236220,0.160529,41370.0,41360.0,0.7555]
[1646356236622,0.01133605,41369.0,41360.0,0.7555]
[1646356236824,0.01133605,41369.0,41361.0,0.095]
[1646356237019,0.01133605,41369.0,41368.0,0.20949245]
[1646356237222,0.01133605,41369.0,41360.0,0.7555]
[1646356237820,0.01330114,41365.0,41360.0,0.7555]
[1646356238020,0.01171943,41364.0,41361.0,0.21209388]
[1646356238223,0.01086214,41362.0,41361.0,0.1604433]
[1646356238420,0.060531,41366.0,41361.0,0.1604433]
[1646356239022,0.045531,41366.0,41361.0,0.1604433]
[1646356239676,0.045531,41366.0,41361.0,0.2554433]
[1646356239877,0.3,41365.0,41356.0,0.095]
[1646356240083,0.01401623,41364.0,41354.0,0.095]
[1646356240279,0.12109,41360.0,41350.0,0.095]
[1646356240479,0.12109,41360.0,41346.0,0.01208]
[1646356240684,0.12109,41360.0,41340.0,0.01209]
[1646356240685,0.01642018,41358.0,41340.0,0.01209]
[1646356240882,0.3408,41359.0,41344.0,0.18427418]
[1646356240883,0.01260349,41356.0,41344.0,0.18427418]
[1646356241082,0.060563,41352.0,41345.0,0.383894]
[1646356241283,0.060563,41352.0,41344.0,0.18427418]
[1646356241284,0.01529127,41350.0,41344.0,0.18427418]
[1646356241481,0.05609127,41350.0,41344.0,0.18427418]
[1646356242779,0.05609127,41350.0,41340.0,0.095]
[1646356243180,0.15609127,41350.0,41334.0,0.096]
[1646356243420,0.01457896,41349.0,41334.0,0.001]
[1646356243724,0.05537896,41349.0,41337.0,0.18126385]
[1646356243921,0.121129,41347.0,41337.0,0.18126385]
[1646356244524,0.121129,41347.0,41340.0,0.20165651]
[1646356244719,0.121129,41347.0,41344.0,0.21609069]
[1646356245120,0.121129,41347.0,41334.0,0.001]
[1646356245320,0.3,41346.0,41334.0,0.001]
[1646356245524,0.01278129,41344.0,41334.0,0.001]
[1646356245721,0.06481,41345.0,41332.0,0.001]
[1646356245722,0.01216579,41342.0,41332.0,0.001]
[1646356246023,0.01216579,41342.0,41328.0,0.18037209]
[1646356246024,0.01443307,41338.0,41328.0,0.18037209]
[1646356246222,0.0408,41337.0,41328.0,0.18037209]
[1646356246722,0.0408,41337.0,41335.0,0.18140598]
[1646356246723,0.121167,41336.0,41335.0,0.18140598]
[1646356246921,0.161967,41336.0,41328.0,0.001]
[1646356247377,0.121167,41336.0,41328.0,0.001]
[1646356247576,0.221167,41336.0,41328.0,0.001]
[1646356247978,0.0408,41335.0,41328.0,0.001]
[1646356248176,0.0408,41335.0,41327.0,0.001]
[1646356248386,0.01387183,41333.0,41327.0,0.001]
[1646356248576,0.01342756,41330.0,41324.0,0.001]
[1646356248776,0.30474248,41334.0,41320.0,0.001]
[1646356248777,0.01468141,41328.0,41320.0,0.001]
[1646356248979,0.01618073,41326.0,41320.0,0.001]
[1646356249184,0.01438624,41322.0,41320.0,0.001]
[1646356249379,0.01438624,41322.0,41306.0,0.3]
[1646356249380,0.01371324,41319.0,41306.0,0.3]
[1646356249580,0.01272162,41316.0,41303.0,0.001]
[1646356249784,0.01404255,41313.0,41303.0,0.001]
[1646356249976,0.20238588,41315.0,41303.0,0.001]
[1646356249977,0.01463137,41310.0,41303.0,0.001]
[1646356250178,0.01345792,41308.0,41303.0,0.001]
[1646356250381,0.02485915,41306.0,41303.0,0.001]
[1646356250579,0.01489628,41304.0,41303.0,0.001]
[1646356250781,0.01489628,41304.0,41288.0,0.01209]
[1646356250782,0.0276311,41302.0,41288.0,0.01209]
[1646356251021,0.02401,41303.0,41288.0,0.01209]
[1646356251022,0.03567647,41300.0,41288.0,0.01209]
[1646356251221,0.3,41303.0,41287.0,0.7965]
[1646356251222,0.01078288,41297.0,41287.0,0.7965]
[1646356251421,0.01475943,41296.0,41287.0,0.7965]
[1646356251621,0.01443085,41294.0,41293.0,0.07493675]
[1646356251823,0.0408,41297.0,41293.0,0.07493675]
[1646356251824,0.162084,41297.0,41293.0,0.18463247]
[1646356252023,0.0115946,41296.0,41286.0,0.001]
[1646356252223,0.01508642,41294.0,41286.0,0.001]
[1646356252429,0.0408,41293.0,41286.0,0.001]
[1646356252827,0.3408,41293.0,41280.0,0.001]
[1646356253125,0.242678,41291.0,41280.0,0.001]
[1646356253323,0.242678,41291.0,41282.0,0.16072556]
[1646356253324,0.060665,41287.0,41282.0,0.16072556]
[1646356253525,0.0408,41286.0,41282.0,0.16072556]
[1646356253923,0.121313,41285.0,41282.0,0.16072556]
[1646356254125,0.0408,41284.0,41282.0,0.05852023]
[1646356254323,0.101456,41284.0,41278.0,0.001]
[1646356254523,0.0408,41284.0,41278.0,0.001]
[1646356255168,0.162114,41284.0,41280.0,0.21830185]
[1646356255571,0.162114,41284.0,41281.0,0.26408111]
[1646356255572,0.060656,41283.0,41281.0,0.26408111]
[1646356255771,0.3,41282.0,41278.0,0.001]
[1646356255972,0.0408,41281.0,41278.0,0.001]
[1646356256377,0.1408,41281.0,41267.0,0.98344481]
[1646356256572,0.1408,41281.0,41267.0,0.7818]
[1646356256773,0.1408,41281.0,41272.0,0.287042]
[1646356257373,0.1408,41281.0,41269.0,0.17831524]
[1646356257574,0.3,41280.0,41272.0,0.0616001]
[1646356257771,0.0408,41279.0,41269.0,0.17831524]
[1646356257971,0.06067,41272.0,41269.0,0.17831524]
[1646356258464,0.06067,41272.0,41264.0,0.0121]
[1646356258465,0.20147,41272.0,41264.0,0.0121]
[1646356258665,0.50147,41272.0,41263.0,0.001]
[1646356259166,0.50147,41272.0,41251.0,0.001]
[1646356259167,0.242795,41270.0,41251.0,0.001]
[1646356259360,0.242795,41270.0,41254.0,0.000273]
[1646356259361,0.3408,41269.0,41254.0,0.000273]
[1646356259559,0.060702,41265.0,41254.0,0.000273]